[Event "FIDE World Rapid-ch Open 2018"]
[White "Ponkratov, Pavel"]
[Black "Christiansen, Johan-Sebastian"]
[Site "St. Petersburg"]
[Round "6.39"]
[Annotator "ChessBase"]
[Result "0-1"]
[Date "2018.12.27"]
[WhiteElo "2630"]
[BlackElo "2555"]
[PlyCount "88"]
[TimeControl "900+10"]

1. g3 {[%emt 0:0:0]} e5 {[%emt 0:0:10]} 2. c4 {[%emt 0:0:0]} Nc6 {[%emt 0:0:0]} 3. Bg2 {[%emt 0:0:0]} Bc5 {[%emt 0:0:7]} 4. Nc3 {[%emt 0:0:6]} d6 {[%emt 0:0:10]} 5. Na4 {[%emt 0:0:12]} Nf6 {[%emt 0:0:17]} 6. a3 {[%emt 0:0:0]} 0-0 {[%emt 0:0:57]} 7. d3 {[%emt 0:0:6]} Re8 {[%emt 0:1:0]} 8. Nf3 {[%emt 0:0:50]} Bg4 {[%emt 0:1:15]} 9. h3 {[%emt 0:1:2]} Bh5 {[%emt 0:0:0]} 10. g4 {[%emt 0:0:51]} Bg6 {[%emt 0:0:3]} 11. Nh4 {[%emt 0:0:9]} Ne4 {[%emt 0:1:42]} 12. dxe4 {[%emt 0:5:45]} Qxh4 {[%emt 0:0:2]} 13. e3 {[%emt 0:0:1]
} a5 {[%emt 0:0:29]} 14. Qe2 {[%emt 0:0:25]} Nb8 {[%emt 0:0:0]} 15. 0-0 {[%emt 0:0:33]} Nd7 {[%emt 0:0:2]} 16. Bd2 {[%emt 0:0:4]} Ba7 {[%emt 0:0:28]} 17. b4 {[%emt 0:0:24]} Nf6 {[%emt 0:0:11]} 18. f3 {[%emt 0:0:0]} axb4 {[%emt 0:0:38]} 19. axb4 {[%emt 0:0:7]} Nd7 {[%emt 0:0:32]} 20. Ra3 {[%emt 0:0:4]} h5 {[%emt 0:0:45]} 21. Rfa1 {[%emt 0:0:8]} Bb8 {[%emt 0:0:19]
} 22. Be1 {[%emt 0:0:55]} Qe7 {[%emt 0:0:27]} 23. Nc3 {[%emt 0:0:0]} Rxa3 {[%emt 0:0:1]} 24. Rxa3 {[%emt 0:0:1]} c6 {[%emt 0:0:1]} 25. Ra1 {[%emt 0:0:36]} hxg4 {[%emt 0:0:9]} 26. hxg4 {[%emt 0:0:2]} Bc7 {[%emt 0:0:20]
} 27. Bf1 {[%emt 0:0:6]} Bb6 {[%emt 0:0:56]} 28. Qd3 {[%emt 0:0:0]} Nf8 {[%emt 0:0:20]} 29. Rd1 {[%emt 0:0:19]} Ne6 {[%emt 0:0:1]} 30. Bf2 {[%emt 0:0:28]} Rd8 {[%emt 0:0:20]} 31. Be2 {[%emt 0:0:38]} Qg5 {[%emt 0:0:12]
} 32. Kg2 {[%emt 0:0:8]} Ra8 {[%emt 0:0:16]} 33. Qd2 {[%emt 0:0:0]} Ra3 {[%emt 0:0:32]} 34. Qc1 {[%emt 0:0:4]} Rb3 {[%emt 0:0:24]} 35. b5 {[%emt 0:1:44]} Bd4 {[%emt 0:0:22]} 36. exd4 {[%emt 0:0:49]} Nf4+ {[%emt 0:0:0]
} 37. Kf1 Qh6 38. Ke1 {[%emt 0:0:17]} Ng2+ {[%emt 0:0:11]} 39. Kf1 {[%emt 0:0:2]} Qh1+ {[%emt 0:1:37]} 40. Bg1 {[%emt 0:0:1]} Nf4 {[%emt 0:0:0]
} 41. dxe5 {[%emt 0:1:15]} Qg2+ {[%emt 0:0:10]} 42. Ke1 {[%emt 0:0:1]
} Qxg1+ {[%emt 0:0:17]} 43. Kd2 {[%emt 0:0:10]} Qd4+ {[%emt 0:0:0]} 44. Ke1 {[%emt 0:0:1]} Ng2+ {[%emt 0:0:58]} 0-1

[Event "FIDE World Rapid-ch Open 2018"]
[White "Teske, Henrik"]
[Black "Esipenko, Andrey"]
[Site "St. Petersburg"]
[Round "6.40"]
[Annotator "ChessBase"]
[Result "0-1"]
[Date "2018.12.27"]
[WhiteElo "2483"]
[BlackElo "2593"]
[PlyCount "90"]
[TimeControl "900+10"]

1. Nf3 {[%emt 0:0:0]} Nf6 {[%emt 0:0:0]} 2. c4 {[%emt 0:0:0]} e6 {[%emt 0:0:8]
} 3. Nc3 {[%emt 0:0:1]} Bb4 {[%emt 0:0:15]} 4. g3 {[%emt 0:0:0]} b6 {[%emt 0:0:24]} 5. Bg2 {[%emt 0:0:5]} Bb7 {[%emt 0:0:2]} 6. 0-0 {[%emt 0:0:6]
} Bxc3 {[%emt 0:0:3]} 7. bxc3 {[%emt 0:0:39]} 0-0 {[%emt 0:0:0]} 8. d3 {[%emt 0:0:3]} d6 {[%emt 0:0:15]} 9. e4 {[%emt 0:0:11]} c5 {[%emt 0:0:8]
} 10. h3 {[%emt 0:0:13]} Nc6 {[%emt 0:0:6]} 11. Be3 {[%emt 0:0:0]} Qc7 {[%emt 0:0:31]} 12. Qc2 {[%emt 0:0:15]} Rfe8 {[%emt 0:0:19]} 13. Rad1 {[%emt 0:0:16]} h6 {[%emt 0:0:17]} 14. Bc1 {[%emt 0:0:25]} Rad8 {[%emt 0:0:6]
} 15. Nh4 {[%emt 0:0:12]} a6 {[%emt 0:0:55]} 16. f4 {[%emt 0:0:0]} b5 {[%emt 0:0:4]} 17. cxb5 {[%emt 0:0:35]} axb5 {[%emt 0:0:1]} 18. g4 {[%emt 0:0:17]} Qe7 {[%emt 0:1:7]} 19. g5 {[%emt 0:0:29]} Nh7 {[%emt 0:0:0]} 20. Qf2 {[%emt 0:0:22]} hxg5 {[%emt 0:0:5]} 21. fxg5 {[%emt 0:0:3]
} Ne5 {[%emt 0:0:5]} 22. g6 {[%emt 0:0:58]} Nxg6 {[%emt 0:0:29]} 23. Nxg6 {[%emt 0:0:2]
} fxg6 {[%emt 0:0:1]} 24. h4 {[%emt 0:0:33]} Rf8 {[%emt 0:0:0]} 25. Qg3 {[%emt 0:0:5]} Rxf1+ {[%emt 0:0:24]} 26. Rxf1 {[%emt 0:0:12]} Rf8 {[%emt 0:0:4]} 27. Qxg6 {[%emt 0:0:31]} Rxf1+ {[%emt 0:0:10]} 28. Kxf1 {[%emt 0:0:14]} Nf8 {[%emt 0:0:35]} 29. Qg3 {[%emt 0:0:18]} Qf6+ {[%emt 0:0:0]} 30. Ke2 {[%emt 0:0:3]} Qxc3 {[%emt 0:0:20]} 31. Bd2 {[%emt 0:0:1]} Qd4 {[%emt 0:0:6]} 32. Be3 {[%emt 0:0:14]} Qb2+ {[%emt 0:0:4]} 33. Bd2 {[%emt 0:0:31]
} c4 {[%emt 0:0:22]} 34. dxc4 {[%emt 0:0:41]} bxc4 {[%emt 0:0:0]} 35. h5 {[%emt 0:0:27]} Ba6 {[%emt 0:1:49]} 36. Qc3 {[%emt 0:0:12]} Qxa2 {[%emt 0:0:18]} 37. h6 {[%emt 0:0:57]} e5 {[%emt 0:0:4]} 38. Bh3 {[%emt 0:0:0]} Qb1 {[%emt 0:0:23]} 39. Bg2 {[%emt 0:1:41]} Qg1 {[%emt 0:1:26]} 40. Kf3 {[%emt 0:0:45]} Ng6 {[%emt 0:0:33]} 41. Kg3 {[%emt 0:0:15]} Nh4 {[%emt 0:2:23]
} 42. Kxh4 {[%emt 0:0:3]} Qxg2 {[%emt 0:0:2]} 43. hxg7 {[%emt 0:1:17]
} Qxe4+ {[%emt 0:0:20]} 44. Kg5 {[%emt 0:0:11]} Bc8 {[%emt 0:0:0]} 45. Qg3 {[%emt 0:0:21]} Qf5+ {[%emt 0:0:51]} 0-1

[Event "FIDE World Rapid-ch Open 2018"]
[White "Geller, Jakov"]
[Black "Grigoriants, Sergey"]
[Site "St. Petersburg"]
[Round "6.41"]
[Annotator "ChessBase"]
[Result "1/2-1/2"]
[Date "2018.12.27"]
[WhiteElo "2518"]
[BlackElo "2540"]
[PlyCount "48"]
[TimeControl "900+10"]

1. e4 {[%emt 0:0:0]} e5 {[%emt 0:0:10]} 2. Nf3 {[%emt 0:0:0]} Nc6 {[%emt 0:0:3]
} 3. Bc4 {[%emt 0:0:3]} Bc5 {[%emt 0:0:10]} 4. d3 {[%emt 0:0:0]} Nf6 {[%emt 0:0:3]} 5. 0-0 {[%emt 0:0:4]} 0-0 {[%emt 0:0:10]} 6. Re1 {[%emt 0:0:3]
} a6 {[%emt 0:1:6]} 7. c3 {[%emt 0:0:59]} d6 {[%emt 0:0:14]} 8. Bb3 {[%emt 0:0:16]} h6 {[%emt 0:1:11]} 9. Nbd2 {[%emt 0:1:23]} Re8 {[%emt 0:1:43]
} 10. Nf1 {[%emt 0:0:24]} Bb6 {[%emt 0:0:36]} 11. Ng3 {[%emt 0:0:0]} Be6 {[%emt 0:0:27]} 12. Bxe6 {[%emt 0:2:20]} Rxe6 {[%emt 0:0:1]} 13. Nh4 {[%emt 0:2:14]} d5 {[%emt 0:2:12]} 14. Qf3 {[%emt 0:0:17]} Nxe4 {[%emt 0:1:58]
} 15. dxe4 {[%emt 0:3:22]} Qxh4 {[%emt 0:0:3]} 16. exd5 {[%emt 0:0:16]
} Rf6 {[%emt 0:0:2]} 17. Nf5 {[%emt 0:0:2]} Qxf2+ {[%emt 0:0:0]} 18. Qxf2 {[%emt 0:0:2]} Bxf2+ {[%emt 0:0:2]} 19. Kxf2 {[%emt 0:0:0]} Rxf5+ {[%emt 0:0:8]} 20. Kg1 {[%emt 0:0:5]} Ne7 {[%emt 0:3:51]} 21. g4 {[%emt 0:0:4]} Rf6 {[%emt 0:0:18]} 22. Rxe5 {[%emt 0:0:13]} Ng6 {[%emt 0:0:1]
} 23. Re4 {[%emt 0:1:8]} Rd8 {[%emt 0:0:7]} 24. g5 {[%emt 0:0:0]} Rf5 {[%emt 0:0:3]} 1/2-1/2

[Event "FIDE World Rapid-ch Open 2018"]
[White "Mchedlishvili, Mikheil"]
[Black "AL-Sayed, Mohammed"]
[Site "St. Petersburg"]
[Round "6.42"]
[Annotator "ChessBase"]
[Result "1/2-1/2"]
[Date "2018.12.27"]
[WhiteElo "2610"]
[BlackElo "2484"]
[PlyCount "152"]
[TimeControl "900+10"]

1. c4 {[%emt 0:0:0]} c6 {[%emt 0:0:10]} 2. Nf3 {[%emt 0:0:2]} d5 {[%emt 0:0:0]} 3. g3 {[%emt 0:0:13]} Bg4 {[%emt 0:0:7]} 4. Bg2 {[%emt 0:0:15]} e6 {[%emt 0:0:3]} 5. Qb3 {[%emt 0:1:5]} Qb6 {[%emt 0:0:12]} 6. Qc2 {[%emt 0:0:0]} Nd7 {[%emt 0:0:14]} 7. b3 {[%emt 0:0:52]} Be7 {[%emt 0:1:19]} 8. Bb2 {[%emt 0:0:17]} Bf6 {[%emt 0:1:37]} 9. Nc3 {[%emt 0:0:28]} Ne7 {[%emt 0:0:0]} 10. 0-0 {[%emt 0:0:11]} 0-0 {[%emt 0:0:6]} 11. d3 {[%emt 0:0:24]} Rfd8 {[%emt 0:1:24]} 12. Rac1 {[%emt 0:2:40]} h6 {[%emt 0:0:36]} 13. e3 {[%emt 0:0:0]} Rac8 {[%emt 0:1:19]} 14. h3 Bh5 {[%emt 0:0:55]} 15. d4 {[%emt 0:0:0]} Qa6 {[%emt 0:0:17]} 16. Qe2 {[%emt 0:0:58]} c5 {[%emt 0:0:44]} 17. cxd5 {[%emt 0:2:3]} Qxe2 {[%emt 0:0:8]} 18. Nxe2 {[%emt 0:0:1]} Nxd5 {[%emt 0:0:0]} 19. Ba3 {[%emt 0:0:19]} cxd4 {[%emt 0:0:20]} 20. Nfxd4 {[%emt 0:0:0]} N7b6 {[%emt 0:2:10]} 21. g4 {[%emt 0:1:46]} Bg6 {[%emt 0:0:1]} 22. Rfd1 {[%emt 0:0:9]} Bxd4 {[%emt 0:1:43]} 23. Rxd4 {[%emt 0:1:10]} Rxc1+ {[%emt 0:0:13]
} 24. Bxc1 {[%emt 0:0:24]} Rc8 {[%emt 0:0:2]} 25. Rd2 {[%emt 0:0:1]
} f6 {[%emt 0:3:8]} 26. Ba3 {[%emt 0:0:5]} a5 {[%emt 0:0:39]
} 27. Nd4 {[%emt 0:0:51]} Bf7 {[%emt 0:0:5]} 28. Nb5 {[%emt 0:0:3]} a4 {[%emt 0:0:31]
} 29. Nd6 {[%emt 0:0:6]} Rc7 {[%emt 0:0:2]} 30. bxa4 {[%emt 0:0:53]
} Nxa4 {[%emt 0:0:17]} 31. Nxf7 {[%emt 0:0:11]} Kxf7 {[%emt 0:0:0]} 32. Bxd5 {[%emt 0:0:2]} exd5 {[%emt 0:0:2]} 33. Rxd5 {[%emt 0:0:0]} Nc3 {[%emt 0:0:6]} 34. Rd2 {[%emt 0:0:29]} Nb1 {[%emt 0:0:16]} 35. Rd3 {[%emt 0:0:1]} Nxa3 {[%emt 0:0:29]} 36. Rxa3 {[%emt 0:0:1]} Rc2 {[%emt 0:0:0]} 37. Kg2 {[%emt 0:0:14]} Kg6 {[%emt 0:0:6]} 38. Ra7 {[%emt 0:0:18]} Rb2 {[%emt 0:0:2]} 39. Ra5 {[%emt 0:0:7]} b6 {[%emt 0:0:7]} 40. Ra7 {[%emt 0:0:1]
} h5 {[%emt 0:0:19]} 41. gxh5+ {[%emt 0:0:21]} Kh6 {[%emt 0:0:0]} 42. Kg3 {[%emt 0:0:6]} Rb5 {[%emt 0:0:14]} 43. Rb7 {[%emt 0:0:19]} Rb2 {[%emt 0:0:4]} 44. a4 {[%emt 0:0:13]} Rb4 {[%emt 0:0:2]} 45. Ra7 {[%emt 0:0:0]} Rb2 {[%emt 0:0:19]} 46. f3 {[%emt 0:0:20]} Ra2 {[%emt 0:0:19]} 47. e4 {[%emt 0:0:14]} b5 {[%emt 0:0:10]} 48. a5 {[%emt 0:0:12]} b4 {[%emt 0:0:0]} 49. a6 {[%emt 0:0:11]} b3 {[%emt 0:0:1]} 50. Kg4 {[%emt 0:0:15]} Rg2+ {[%emt 0:0:13]} 51. Kf4 {[%emt 0:0:0]} Ra2 {[%emt 0:0:6]} 52. Rb7 {[%emt 0:0:18]
} Rxa6 53. Rxb3 Kxh5 {[%emt 0:0:19]} 54. Kf5 {[%emt 0:0:20]} Ra5+ {[%emt 0:0:12]} 55. Ke6 {[%emt 0:0:3]} Kg6 {[%emt 0:0:46]} 56. f4 {[%emt 0:0:1]
} Ra6+ {[%emt 0:0:1]} 57. Kd5 {[%emt 0:0:3]} Ra5+ {[%emt 0:0:0]} 58. Kc6 {[%emt 0:0:10]} Ra4 {[%emt 0:0:9]} 59. Kd5 {[%emt 0:0:24]} Ra5+ {[%emt 0:0:0]} 60. Kd4 {[%emt 0:0:1]} Ra4+ {[%emt 0:0:6]} 61. Ke3 {[%emt 0:0:4]
} Ra7 {[%emt 0:0:10]} 62. Kf3 {[%emt 0:0:3]} Kh5 {[%emt 0:0:0]} 63. Ke3 {[%emt 0:0:15]} g5 {[%emt 0:0:14]} 64. f5 {[%emt 0:0:22]} Kh4 {[%emt 0:0:2]
} 65. Kd4 {[%emt 0:0:4]} Rd7+ {[%emt 0:0:7]} 66. Kc5 {[%emt 0:0:1]
} g4 {[%emt 0:0:9]} 67. hxg4 Kxg4 {[%emt 0:0:1]} 68. Rb6 {[%emt 0:0:34]
} Kf4 {[%emt 0:0:18]} 69. Rd6 {[%emt 0:0:8]} Re7 {[%emt 0:0:0]} 70. Re6 {[%emt 0:0:4]} Rd7 {[%emt 0:0:2]} 71. Re8 {[%emt 0:0:18]} Rd1 {[%emt 0:0:10]} 72. Re6 {[%emt 0:0:12]} Rd8 {[%emt 0:0:4]} 73. Kc6 {[%emt 0:0:5]
} Rd4 {[%emt 0:0:4]} 74. Rxf6 {[%emt 0:0:23]} Kxe4 {[%emt 0:0:0]} 75. Rf8 {[%emt 0:0:4]} Ke5 {[%emt 0:0:10]} 76. f6 {[%emt 0:0:4]} Rd6+ {[%emt 0:0:3]} 1/2-1/2

[Event "FIDE World Rapid-ch Open 2018"]
[White "Maghsoodloo, Parham"]
[Black "Alekseenko, Kirill"]
[Site "St. Petersburg"]
[Round "6.43"]
[Annotator "ChessBase"]
[Result "1/2-1/2"]
[Date "2018.12.27"]
[WhiteElo "2688"]
[BlackElo "2638"]
[PlyCount "88"]
[TimeControl "900+10"]

1. Nf3 {[%emt 0:2:19]} d5 {[%emt 0:1:5]} 2. b3 {[%emt 0:0:23]} c5 {[%emt 0:0:0]} 3. e3 {[%emt 0:0:13]} Nf6 {[%emt 0:0:12]} 4. Bb5+ {[%emt 0:0:45]} Bd7 {[%emt 0:0:13]} 5. a4 {[%emt 0:0:11]} g6 {[%emt 0:0:44]} 6. Ba3 {[%emt 0:1:57]
} Bxb5 {[%emt 0:1:11]} 7. axb5 {[%emt 0:0:2]} Nbd7 {[%emt 0:0:0]} 8. Bb2 {[%emt 0:0:29]} Bg7 {[%emt 0:0:3]} 9. 0-0 {[%emt 0:0:3]} 0-0 {[%emt 0:0:3]} 10. c4 {[%emt 0:0:2]} e6 {[%emt 0:0:8]} 11. Qc2 {[%emt 0:0:34]
} Qc7 {[%emt 0:1:5]} 12. Nc3 {[%emt 0:1:21]} d4 {[%emt 0:0:0]} 13. exd4 {[%emt 0:0:39]} cxd4 {[%emt 0:0:1]} 14. Ne2 {[%emt 0:0:36]} e5 {[%emt 0:0:42]} 15. d3 {[%emt 0:0:2]} Nc5 {[%emt 0:0:10]} 16. Ng3 {[%emt 0:1:51]
} Ne6 {[%emt 0:0:15]} 17. Rfe1 {[%emt 0:0:6]} Nd5 {[%emt 0:0:0]} 18. Qd2 {[%emt 0:1:7]} Ndf4 {[%emt 0:0:14]} 19. b4 {[%emt 0:0:3]} f5 {[%emt 0:0:31]} 20. Qd1 {[%emt 0:1:5]} b6 {[%emt 0:0:51]} 21. Bc1 {[%emt 0:0:0]} Rae8 {[%emt 0:0:6]} 22. Qb3 {[%emt 0:0:25]} Kh8 {[%emt 0:0:44]} 23. Ra2 {[%emt 0:0:14]} Qb7 {[%emt 0:0:32]} 24. Bxf4 {[%emt 0:0:37]} Nxf4 {[%emt 0:0:2]
} 25. c5 {[%emt 0:0:6]} Bf6 {[%emt 0:4:26]} 26. c6 {[%emt 0:0:0]} Qg7 {[%emt 0:0:1]} 27. Nd2 {[%emt 0:1:24]} h5 {[%emt 0:0:27]} 28. Ne2 {[%emt 0:0:23]} Ne6 {[%emt 0:1:17]} 29. Nc4 {[%emt 0:0:13]} Re7 {[%emt 0:0:46]
} 30. Kh1 {[%emt 0:0:32]} e4 {[%emt 0:0:12]} 31. dxe4 {[%emt 0:0:0]} fxe4 32. Ng3 e3 {[%emt 0:1:53]} 33. fxe3 {[%emt 0:0:52]} Ng5 {[%emt 0:0:14]
} 34. Rae2 {[%emt 0:0:10]} h4 {[%emt 0:0:4]} 35. Nf1 {[%emt 0:0:0]} Rfe8 {[%emt 0:0:16]} 36. Qd3 {[%emt 0:0:5]} h3 {[%emt 0:0:35]} 37. exd4 {[%emt 0:0:24]} hxg2+ {[%emt 0:0:19]} 38. Kxg2 {[%emt 0:0:1]} Qf7 {[%emt 0:0:2]
} 39. Rxe7 {[%emt 0:0:21]} Qd5+ {[%emt 0:0:0]} 40. Kg3 {[%emt 0:0:10]
} Bxe7 {[%emt 0:0:16]} 41. Re5 {[%emt 0:0:7]} Bd6 {[%emt 0:0:0]} 42. Nxd6 {[%emt 0:0:21]} Rxe5 {[%emt 0:0:1]} 43. Qxg6 {[%emt 0:0:11]} Qf3+ {[%emt 0:0:3]} 44. Kh4 {[%emt 0:0:0]} Qh3# {[%emt 0:0:2] c7} 1/2-1/2

[Event "FIDE World Rapid-ch Open 2018"]
[White "Pershin, Denis"]
[Black "Potkin, Vladimir"]
[Site "St. Petersburg"]
[Round "6.44"]
[Annotator "ChessBase"]
[Result "1/2-1/2"]
[Date "2018.12.27"]
[WhiteElo "2400"]
[BlackElo "2597"]
[PlyCount "111"]
[TimeControl "900+10"]

1. Nf3 {[%emt 0:1:26]} d5 {[%emt 0:0:0]} 2. e3 {[%emt 0:0:13]} Nf6 {[%emt 0:0:4]
} 3. c4 {[%emt 0:0:13]} e6 {[%emt 0:0:24]} 4. b3 {[%emt 0:0:0]} Be7 {[%emt 0:0:18]} 5. Bb2 {[%emt 0:0:11]} 0-0 {[%emt 0:0:3]} 6. Nc3 {[%emt 0:1:37]
} dxc4 {[%emt 0:0:16]} 7. Bxc4 {[%emt 0:0:20]} a6 {[%emt 0:0:0]} 8. d4 {[%emt 0:0:13]} b5 {[%emt 0:0:20]} 9. Bd3 {[%emt 0:0:4]} Bb7 {[%emt 0:0:14]
} 10. 0-0 {[%emt 0:0:10]} c5 {[%emt 0:0:15]} 11. dxc5 {[%emt 0:0:0]} Bxc5 {[%emt 0:0:21]} 12. Rc1 {[%emt 0:0:9]} Nbd7 {[%emt 0:0:2]} 13. Qe2 {[%emt 0:0:10]} Qe7 {[%emt 0:1:27]} 14. Ng5 {[%emt 0:0:29]} Rac8 {[%emt 0:0:46]
} 15. Nce4 {[%emt 0:1:42]} Nxe4 {[%emt 0:1:11]} 16. Bxe4 {[%emt 0:0:35]
} Bxe4 {[%emt 0:0:16]} 17. Nxe4 {[%emt 0:0:2]} Ba3 {[%emt 0:0:0]} 18. Qd2 {[%emt 0:0:30]} Bxb2 {[%emt 0:1:37]} 19. Qxb2 {[%emt 0:0:2]
} Nf6 {[%emt 0:1:40]} 20. Nxf6+ {[%emt 0:0:27]} Qxf6 {[%emt 0:0:2]} 21. Qa3 {[%emt 0:2:2]} e5 {[%emt 0:0:14]} 22. Rxc8 {[%emt 0:1:28]} Rxc8 {[%emt 0:0:0]} 23. Rc1 {[%emt 0:0:1]} Rd8 {[%emt 0:0:11]} 24. Qa5 {[%emt 0:0:23]} g6 {[%emt 0:0:37]} 25. h3 {[%emt 0:1:5]} e4 {[%emt 0:0:3]} 26. a4 {[%emt 0:0:54]
} bxa4 {[%emt 0:2:20]} 27. bxa4 {[%emt 0:0:58]} Kg7 {[%emt 0:0:0]} 28. Qb4 {[%emt 0:0:26]} Qe5 {[%emt 0:0:6]} 29. Qb7 {[%emt 0:1:17]} a5 {[%emt 0:0:27]} 30. g3 {[%emt 0:0:2]} Rd2 {[%emt 0:0:20]} 31. Qc7 {[%emt 0:0:28]
} Qf6 {[%emt 0:2:26]} 32. Qf4 {[%emt 0:0:1]} Qxf4 {[%emt 0:0:0]} 33. gxf4 {[%emt 0:0:2]} Ra2 {[%emt 0:0:1]} 34. Rc4 {[%emt 0:0:1]} f5 {[%emt 0:0:2]} 35. h4 {[%emt 0:1:6]} Kh6 {[%emt 0:1:14]} 36. Kg2 {[%emt 0:0:0]} Kh5 {[%emt 0:0:2]} 37. Kg3 {[%emt 0:1:18]} Ra1 {[%emt 0:0:2]} 38. Rd4 {[%emt 0:0:13]} Rg1+ {[%emt 0:0:30]} 39. Kh2 {[%emt 0:0:1]} Rf1 {[%emt 0:0:36]
} 40. Kg3 {[%emt 0:0:16]} Ra1 {[%emt 0:0:2]} 41. Rc4 {[%emt 0:0:0]} h6 {[%emt 0:0:4]} 42. Rd4 {[%emt 0:0:6]} Rg1+ {[%emt 0:0:2]} 43. Kh2 {[%emt 0:0:1]} Rb1 {[%emt 0:1:1]} 44. Rd5 {[%emt 0:0:11]} Kxh4 {[%emt 0:0:15]
} 45. Rxa5 {[%emt 0:0:1]} Kg4 {[%emt 0:0:20]} 46. Kg2 {[%emt 0:0:5]
} g5 {[%emt 0:0:10]} 47. fxg5 {[%emt 0:0:3]} hxg5 {[%emt 0:0:0]} 48. Re5 {[%emt 0:0:37]} Ra1 {[%emt 0:0:10]} 49. a5 {[%emt 0:0:6]} Ra2 {[%emt 0:0:2]} 50. Kg1 {[%emt 0:0:41]} Ra1+ {[%emt 0:1:20]} 51. Kg2 {[%emt 0:0:0]
} Ra2 {[%emt 0:0:15]} 52. Kg1 {[%emt 0:0:2]} Ra4 {[%emt 0:0:0]} 53. Kg2 {[%emt 0:0:30]} f4 {[%emt 0:0:2]} 54. exf4 {[%emt 0:0:13]} gxf4 {[%emt 0:0:1]} 55. Rxe4 {[%emt 0:0:1]} Rxa5 {[%emt 0:0:2]} 56. f3+ {[%emt 0:0:2]
} 1/2-1/2

[Event "FIDE World Rapid-ch Open 2018"]
[White "Fedoseev, Vladimir"]
[Black "Vokhidov, Shamsiddin"]
[Site "St. Petersburg"]
[Round "6.45"]
[Annotator "ChessBase"]
[Result "1-0"]
[Date "2018.12.27"]
[WhiteElo "2719"]
[BlackElo "2480"]
[PlyCount "71"]
[TimeControl "900+10"]

1. e4 {[%emt 0:0:0]} e5 {[%emt 0:0:0]} 2. Nf3 {[%emt 0:0:0]} Nc6 {[%emt 0:0:0]
} 3. Bb5 {[%emt 0:0:0]} Nf6 {[%emt 0:0:0]} 4. 0-0 {[%emt 0:0:0]} Nxe4 {[%emt 0:0:4]} 5. Re1 {[%emt 0:0:0]} Nd6 {[%emt 0:0:2]} 6. Nxe5 {[%emt 0:0:0]} Nxe5 {[%emt 0:0:1]} 7. Rxe5+ {[%emt 0:0:0]} Be7 {[%emt 0:0:1]
} 8. Bf1 {[%emt 0:0:1]} 0-0 {[%emt 0:0:3]} 9. d4 {[%emt 0:0:0]} Bf6 {[%emt 0:0:5]} 10. Re2 {[%emt 0:0:0]} b6 {[%emt 0:1:56]} 11. Re1 {[%emt 0:0:1]} Bb7 {[%emt 0:0:1]} 12. Bf4 {[%emt 0:0:5]} Ne4 {[%emt 0:0:0]} 13. Nd2 {[%emt 0:0:2]} Re8 {[%emt 0:0:6]} 14. c3 {[%emt 0:0:52]} d6 {[%emt 0:1:35]
} 15. Bb5 {[%emt 0:0:12]} Re7 {[%emt 0:0:3]} 16. Nxe4 {[%emt 0:0:9]
} Bxe4 {[%emt 0:0:36]} 17. d5 {[%emt 0:0:19]} Bf5 {[%emt 0:0:0]} 18. Bc6 {[%emt 0:2:59]} Rb8 {[%emt 0:0:1]} 19. Qa4 {[%emt 0:0:1]} a5 {[%emt 0:0:23]} 20. Bd2 {[%emt 0:0:13]} Bd7 {[%emt 0:4:16]} 21. Rxe7 {[%emt 0:0:2]
} Bxc6 {[%emt 0:0:1]} 22. Qxc6 {[%emt 0:0:1]} Bxe7 {[%emt 0:0:0]} 23. Re1 {[%emt 0:0:1]} b5 {[%emt 0:0:9]} 24. Be3 {[%emt 0:0:21]} h6 {[%emt 0:2:27]} 25. Ba7 {[%emt 0:0:3]} Ra8 {[%emt 0:0:1]} 26. Rxe7 {[%emt 0:0:3]
} Qxe7 {[%emt 0:0:34]} 27. Qxa8+ {[%emt 0:0:1]} Kh7 {[%emt 0:0:0]} 28. Be3 {[%emt 0:0:11]} Qe4 {[%emt 0:0:6]} 29. h3 {[%emt 0:0:26]} Qb1+ {[%emt 0:0:2]} 30. Kh2 {[%emt 0:0:1]} Qxa2 {[%emt 0:0:3]} 31. Qa6 {[%emt 0:0:17]
} b4 {[%emt 0:2:0]} 32. cxb4 {[%emt 0:0:9]} a4 {[%emt 0:0:0]} 33. Qd3+ {[%emt 0:0:16]} Kg8 {[%emt 0:0:2]} 34. Qa3 {[%emt 0:0:13]} Qxd5 {[%emt 0:0:10]} 35. Qxa4 {[%emt 0:0:2]} Qe5+ {[%emt 0:0:7]} 36. g3 {[%emt 0:0:1]
} 1-0

[Event "FIDE World Rapid-ch Open 2018"]
[White "Shinkevich, Vitaly"]
[Black "Amonatov, Farrukh"]
[Site "St. Petersburg"]
[Round "6.46"]
[Annotator "ChessBase"]
[Result "0-1"]
[Date "2018.12.27"]
[WhiteElo "2439"]
[BlackElo "2614"]
[PlyCount "88"]
[TimeControl "900+10"]

1. d4 {[%emt 0:0:55]} Nf6 {[%emt 0:1:30]} 2. Nf3 {[%emt 0:0:3]} g6 {[%emt 0:0:0]
} 3. c4 {[%emt 0:0:7]} Bg7 {[%emt 0:0:2]} 4. g3 {[%emt 0:0:0]} 0-0 {[%emt 0:0:5]} 5. Bg2 {[%emt 0:0:2]} d6 {[%emt 0:0:12]} 6. Nc3 {[%emt 0:0:2]
} Nbd7 {[%emt 0:0:1]} 7. 0-0 {[%emt 0:0:3]} e5 {[%emt 0:0:0]} 8. e3 {[%emt 0:0:54]} c6 {[%emt 0:0:2]} 9. b3 {[%emt 0:0:2]} Re8 {[%emt 0:0:2]
} 10. a4 {[%emt 0:0:11]} a5 {[%emt 0:0:32]} 11. Ba3 {[%emt 0:0:0]} Bf8 {[%emt 0:0:46]} 12. Rc1 {[%emt 0:1:35]} exd4 {[%emt 0:1:33]} 13. exd4 {[%emt 0:0:25]} Ne4 {[%emt 0:0:8]} 14. Nxe4 {[%emt 0:6:26]} Rxe4 {[%emt 0:0:4]
} 15. Bb2 {[%emt 0:0:7]} Nf6 {[%emt 0:0:54]} 16. d5 {[%emt 0:0:0]} c5 {[%emt 0:0:7]} 17. Qd2 {[%emt 0:0:36]} Bg7 {[%emt 0:0:51]} 18. Bc3 {[%emt 0:1:44]} Bg4 {[%emt 0:0:49]} 19. Qb2 {[%emt 0:0:3]} Ne8 {[%emt 0:1:8]
} 20. Bxg7 {[%emt 0:1:59]} Nxg7 {[%emt 0:0:3]} 21. Nd2 {[%emt 0:0:28]
} Re2 {[%emt 0:1:12]} 22. h3 {[%emt 0:0:19]} Qg5 {[%emt 0:0:0]} 23. Ne4 {[%emt 0:1:37]} Rxb2 {[%emt 0:0:22]} 24. Nxg5 {[%emt 0:0:1]} Bf5 {[%emt 0:0:57]} 25. g4 {[%emt 0:0:16]} Bc2 {[%emt 0:0:32]} 26. Rfe1 {[%emt 0:0:21]
} h6 {[%emt 0:0:41]} 27. Nxf7 {[%emt 0:0:13]} Kxf7 {[%emt 0:0:0]} 28. Re2 {[%emt 0:0:1]} Rxb3 {[%emt 0:0:7]} 29. Rcxc2 {[%emt 0:0:6]} Re8 {[%emt 0:0:4]} 30. Rxe8 {[%emt 0:0:24]} Nxe8 {[%emt 0:0:3]} 31. f4 {[%emt 0:0:3]
} Rb4 {[%emt 0:0:18]} 32. g5 {[%emt 0:0:4]} h5 {[%emt 0:0:25]
} 33. f5 {[%emt 0:0:23]} gxf5 {[%emt 0:0:1]} 34. h4 {[%emt 0:0:1]} Rxa4 {[%emt 0:0:8]
} 35. Bf3 {[%emt 0:0:6]} Ng7 {[%emt 0:0:1]} 36. Kf2 {[%emt 0:0:0]} Rb4 {[%emt 0:0:4]} 37. Be2 {[%emt 0:0:12]} a4 {[%emt 0:0:7]} 38. Ra2 {[%emt 0:0:5]} Kg6 {[%emt 0:0:22]} 39. Ke3 {[%emt 0:0:15]} b5 {[%emt 0:0:0]} 40. cxb5 {[%emt 0:0:3]} Rxh4 {[%emt 0:0:1]} 41. Rb2 {[%emt 0:0:19]
} a3 {[%emt 0:0:9]} 42. Ra2 {[%emt 0:0:5]} Ra4 {[%emt 0:0:17]} 43. b6 {[%emt 0:0:11]
} Rb4 {[%emt 0:0:1]} 44. Rxa3 {[%emt 0:0:14]} Rxb6 {[%emt 0:0:0] Kd4} 0-1

[Event "FIDE World Rapid-ch Open 2018"]
[White "Reshetnikov, Alexey"]
[Black "Riazantsev, Alexander"]
[Site "St. Petersburg"]
[Round "6.47"]
[Annotator "ChessBase"]
[Result "0-1"]
[Date "2018.12.27"]
[WhiteElo "2492"]
[BlackElo "2649"]
[PlyCount "32"]
[TimeControl "900+10"]

1. Nf3 {[%emt 0:0:0]} d5 {[%emt 0:0:0]} 2. e3 {[%emt 0:0:5]} Nf6 {[%emt 0:0:35]
} 3. c4 {[%emt 0:0:1]} e6 {[%emt 0:0:4]} 4. Nc3 {[%emt 0:0:0]} Bd6 {[%emt 0:0:6]} 5. d4 {[%emt 0:0:34]} b6 {[%emt 0:0:2]} 6. Bd3 {[%emt 0:0:31]
} Bb7 {[%emt 0:0:10]} 7. 0-0 {[%emt 0:0:51]} 0-0 {[%emt 0:0:0]} 8. b3 {[%emt 0:1:3]} Nbd7 {[%emt 0:0:3]} 9. cxd5 {[%emt 0:1:24]} exd5 {[%emt 0:0:5]} 10. Nb5 {[%emt 0:1:8]} Be7 {[%emt 0:0:2]} 11. Ba3 {[%emt 0:0:17]
} c5 {[%emt 0:0:37]} 12. Rc1 {[%emt 0:0:37]} Re8 {[%emt 0:0:0]} 13. Nc3 {[%emt 0:1:12]} a6 {[%emt 0:1:16]} 14. dxc5 {[%emt 0:0:5]} bxc5 {[%emt 0:0:2]} 15. Na4 {[%emt 0:0:5]} Rc8 {[%emt 0:0:18]} 16. Qe2 {[%emt 0:0:38]
} c4 {[%emt 0:0:33]} 0-1